fUSD/lending_fUSD_20240811
["ID","MTS","AMOUNT","RATE_DAILY","PERIOD"]
[334623743,1723359032371,-300.0,0.00015728,2]
[334623744,1723359032380,-250.0,0.00015729,2]
[334623745,1723359032389,-250.0,0.00015738,2]
[334623746,1723359032399,-249.91554642,0.00015752,2]
[334623747,1723359032410,-621.77146932,0.00015752,2]
[334623748,1723359032421,-883.97785601,0.00015752,2]
[334623749,1723359032433,-96.75512825,0.00015752,2]
[334623750,1723359032442,-157.924125,0.000158,2]
[334623751,1723359032452,-195.57074675,0.0001587,2]
[334623752,1723359032468,-404.0,0.0001587,2]
[334623753,1723359032479,-677.01,0.0001587,2]
[334623754,1723359032490,-868.85513553,0.0001587,2]
[334623755,1723359032499,-791.55,0.00015983,2]
[334623756,1723359032509,-690.17675395,0.0001607,2]
[334623840,1723359038388,-1280.74831392,0.0001607,2]
[334623841,1723359038400,-5146.20493213,0.0001607,2]
[334623842,1723359038410,-1000.0,0.00016234,2]
[334623843,1723359038420,-268.0,0.00016237,2]
[334623844,1723359038430,-507.833,0.00016238,2]
[334623845,1723359038439,-400.0,0.00016238,2]
[334623846,1723359038449,-21745.0,0.00016238,2]
[334623847,1723359038458,-150.0,0.00016238,2]
[334623848,1723359038468,-921.3480316,0.00016358,2]
[334623849,1723359038478,-3262.70615938,0.00016398,2]
[334623850,1723359038495,-735.25,0.00016398,2]
[334623851,1723359038675,-1879.79073718,0.00016398,2]
[334623852,1723359038687,-353.01173433,0.00016398,2]
[334623955,1723359040378,-8077.17382208,0.00016398,2]
[334623956,1723359040390,-1483.56198598,0.00016398,2]
[334624083,1723359043399,-1205.47528757,0.00016398,2]
[334624186,1723359044336,-3305.2810138,0.00016398,2]
[334624255,1723359180889,186.16,0.0001273,2]
[334624258,1723359202483,164.52,0.00012669,2]
[334624260,1723359251374,227.74801183,0.00012669,2]
[334624264,1723359305937,153.13,0.00013973,2]
[334624265,1723359329757,2341.29720318,0.00014988,2]
[334624266,1723359368534,192.22406232,0.00014999,2]
[334624268,1723359382322,1275.34900939,0.00014988,2]
[334624269,1723359403484,1500.0,0.00014988,2]
[334624275,1723359554378,1256.88564,0.00014988,2]
[334624276,1723359586806,550.0,0.0001,2]
[334624277,1723359587939,600.0,0.00012,2]
[334624278,1723359611705,733.3266693,0.00014988,2]
[334624279,1723359672222,186.16,0.00012276,2]
[334624280,1723359725817,2866.0,0.00015,2]
[334624281,1723359743453,5000.0,0.00014988,2]
[334624282,1723359764456,922.12,0.00013475,2]
[334624283,1723359782351,14824.7937007,0.00014988,2]
[334624284,1723359833729,475.68,0.00013973,2]
[334624286,1723359884965,5000.0,0.00014988,2]
[334624287,1723359948347,1745.6,0.00014999,2]
[334624288,1723359957921,498.49140865,0.00014988,2]
[334624289,1723359973290,179.42836704,0.00014999,2]
[334624290,1723360007281,155.73849284,0.00015,2]
[334624291,1723360031144,23900.0,0.00014954,2]
[334624292,1723360033482,1536.07,0.00014954,2]
[334624295,1723360054395,196.0,0.00015,30]
[334624296,1723360057253,9950.70118944,0.00014988,2]
[334624300,1723360232558,-156.48,0.00015081,2]
[334624301,1723360232568,-504.33574573,0.00015124,2]
[334624302,1723360232580,-348.26422483,0.00015124,2]
[334624322,1723360236269,164.53,0.00012116,2]
[334624331,1723360238568,-147.40002944,0.00015124,2]
[334624332,1723360238578,-881.12474991,0.00015142,2]
[334624333,1723360238589,-118.87525009,0.00015142,2]
[334624334,1723360238599,-200.0,0.0001515,2]
[334624335,1723360238612,-347.89759327,0.00015177,2]
[334624336,1723360238624,-469.60240673,0.00015177,2]
[334624337,1723360238633,-10961.32110453,0.00015205,2]
[334624338,1723360238642,-123.38620339,0.00015205,2]
[334624339,1723360238659,-176.61379661,0.00015205,2]
[334624340,1723360238668,-709.61,0.00015206,2]
[334624341,1723360238678,-1160.86,0.00015213,2]
[334624342,1723360238687,-561.91,0.00015213,2]
[334624343,1723360238696,-200.0,0.00015338,2]
[334624344,1723360238706,-1000.0,0.00015352,2]
[334624345,1723360238715,-3028.29,0.00015438,2]
[334624346,1723360238725,-1000.0,0.00015438,2]
[334624347,1723360238735,-1000.0,0.00015439,2]
[334624348,1723360238745,-250.0,0.00015532,2]
[334624349,1723360238755,-922.12,0.00015739,2]
[334624350,1723360238764,-1000.0,0.00015783,2]
[334624351,1723360238774,-1202.94410253,0.0001587,2]
[334624352,1723360238783,-166.04,0.00015875,2]
[334624353,1723360238793,-1000.0,0.00015984,2]
[334624354,1723360238802,-5000.0,0.00015999,2]
[334624355,1723360238812,-420.30226764,0.00016032,2]
[334624356,1723360238822,-162.55,0.00016134,2]
[334624357,1723360238831,-52366.0,0.00016215,2]
[334624358,1723360238842,-1089.05208853,0.00016232,2]
[334624359,1723360238852,-500.0,0.00016239,2]
[334624360,1723360238862,-5555.20774477,0.0001624,2]
[334624361,1723360238874,-5662.2090083,0.0001624,2]
[334624362,1723360238889,-2448.48,0.0001624,2]
[334624363,1723360238900,-4018.27120797,0.0001624,2]
[334624364,1723360238914,-526.17759152,0.0001624,2]
[334624365,1723360238925,-932.0,0.0001624,2]
[334624366,1723360238936,-7791.76614629,0.0001624,2]
[334624367,1723360238947,-264.54415884,0.0001624,2]
[334624368,1723360239040,-445.42957939,0.0001624,2]
[334624369,1723360239052,-1089.05208853,0.0001624,2]
[334624429,1723360240409,-312.60966571,0.0001624,2]
[334624432,1723360240504,-3403.92436493,0.0001624,2]
[334624433,1723360240516,-573.37954002,0.0001624,2]
[334624434,1723360240527,-635.20510333,0.0001624,2]
[334624435,1723360240538,-688.15196471,0.0001624,2]
[334624436,1723360240549,-10400.0,0.0001624,2]
[334624437,1723360240560,-469.092,0.0001624,2]
[334624438,1723360240571,-347.2456218,0.0001624,2]
[334624439,1723360240583,-782.46178449,0.0001624,2]
[334624440,1723360240597,-857.69234347,0.0001624,2]
[334624441,1723360240699,-165646.38552328,0.0001624,2]
[334624442,1723360240709,-3084.912,0.0001624,2]
[334624443,1723360240718,-1269.03706045,0.00016279,2]
[334624444,1723360240727,-1000.0,0.00016379,2]
[334624445,1723360240736,-3000.0,0.0001643,2]
[334624446,1723360240746,-3000.0,0.0001649,2]
[334624447,1723360240755,-3000.0,0.0001657,2]
[334624448,1723360240765,-420.0,0.00016638,2]
[334624449,1723360240774,-3000.0,0.0001664,2]
[334624450,1723360240783,-135.83901545,0.0001672,2]
[334624461,1723360241875,-2864.16098455,0.0001672,2]
[334624462,1723360241885,-309.47314326,0.00016774,2]
[334624463,1723360241895,-6363.0053,0.0001678,2]
[334624464,1723360241904,-46864.64302982,0.0001678,2]
[334624465,1723360241916,-23821.24957018,0.0001678,2]
[334624466,1723360241925,-1000.0,0.00016782,2]
[334624467,1723360241935,-4500.0,0.000168,6]
[334624468,1723360241944,-3000.0,0.000168,2]
[334624469,1723360241953,-29244.60687999,0.0001687,3]
[334624470,1723360241972,-1352.59422969,0.0001687,3]
[334624471,1723360241983,-813.78799327,0.0001687,3]
[334624472,1723360241994,-1916.60939772,0.0001687,3]
[334624483,1723360243514,-158.64164025,0.00016441,2]
[334624484,1723360243523,-920.98631863,0.00016604,2]
[334624487,1723360244483,-843.10803789,0.00016604,2]
[334624488,1723360244493,-15032.41424844,0.0001687,3]
[334624489,1723360244515,-2953.79093199,0.0001687,3]
[334624490,1723360244525,-92.98353737,0.0001688,2]
[334624491,1723360246747,-1713.39978971,0.0001688,2]
[334624492,1723360246759,-503.24805907,0.0001688,2]
[334624493,1723360246786,-3047.83493242,0.0001688,2]
[334624494,1723360246797,-5210.0,0.0001688,2]
[334624495,1723360246810,-16463.69407896,0.0001688,2]
[334624496,1723360246820,-100000.0,0.0001688,2]
[334624497,1723360246830,-7500.0,0.00016886,2]
[334624498,1723360246840,-2145.43588228,0.00016897,2]
[334624499,1723360246851,-178.5,0.000169,2]
[334624500,1723360246862,-9100.0,0.000169,6]
[334624501,1723360246871,-313.69504062,0.00016949,2]
[334624502,1723360246880,-791.07402663,0.00016952,2]
[334624504,1723360246890,-3315.4396117,0.00016964,2]
[334624506,1723360246900,-156.48,0.00016966,2]
[334624507,1723360246910,-115456.058283,0.00016966,3]
[334624508,1723360246921,-161.438423,0.00016967,2]
[334624509,1723360246931,-95277.9687609,0.00016976,3]
[334624511,1723360369190,184.19,0.00013973,2]
[334624512,1723360417469,227.74801183,0.00013973,2]
[334624518,1723360740157,2565.99588991,0.00013973,2]
[334624519,1723360750018,1371.41352364,0.00013973,2]
[334624520,1723360751253,886.95,0.00013574,2]
[334624521,1723360757754,1223.55498284,0.00013973,2]
[334624522,1723360761506,183700.99834865,0.00013973,2]
[334624523,1723360762510,3070.88521436,0.00013973,2]
[334624524,1723360762767,1268.93157185,0.00013973,2]
[334624525,1723360765931,20392.66258053,0.00013973,2]
[334624526,1723360768050,1285.12345493,0.00013973,2]
[334624527,1723360773008,14359.26627626,0.00013973,2]
[334624528,1723360774512,1310.16050547,0.00013973,2]
[334624529,1723360774930,7579.12678742,0.00013973,2]
[334624530,1723360835151,2565.99588991,0.00013973,2]
[334624531,1723360840002,1371.41352364,0.00013973,2]
[334624532,1723360859080,1285.12345493,0.00013973,2]
[334624533,1723360862942,20392.66258053,0.00013973,2]
[334624534,1723360864949,7579.12678742,0.00013973,2]
[334624535,1723360864996,14359.26627626,0.00013973,2]
[334624536,1723360873513,3070.88521436,0.00013973,2]
[334624537,1723360875769,1268.45436887,0.00013973,2]
[334624538,1723360878517,18561.09895716,0.00013973,2]
[334624539,1723360878548,1309.63889255,0.00013973,2]
[334624541,1723360934972,7572.36691416,0.00013973,2]
[334624542,1723360935996,14359.26627626,0.00013973,2]
[334624543,1723360939022,1371.41352364,0.00013973,2]
[334624544,1723360940146,2565.99588991,0.00013973,2]
[334624545,1723360956077,1285.12345493,0.00013973,2]
[334624546,1723360968517,3070.88521436,0.00013973,2]
[334624547,1723360973938,20392.66258053,0.00013973,2]
[334624548,1723361024015,14359.26627626,0.00013973,2]
[334624549,1723361036019,14359.26627626,0.00013973,2]
[334624550,1723361041154,2562.12800906,0.00013973,2]
[334624551,1723361055520,3068.36808784,0.00013973,2]
[334624552,1723361068565,1283.78074063,0.00013973,2]
[334624553,1723361069944,20392.66258053,0.00013973,2]
[334624562,1723361109205,1405.98538711,0.00014988,2]
[334624563,1723361148063,911.74073714,0.00013973,2]
[334624566,1723361178457,279.39035994,0.00014988,2]
[334624570,1723361228487,227.74801183,0.00014988,2]
[334624575,1723361288022,842.6,0.00013651,2]
[334624576,1723361312178,547.78190811,0.00014988,2]
[334624577,1723361333770,155.0,0.00014999,2]
[334624578,1723361341991,368.57059069,0.00014999,2]
[334624585,1723361382361,155.69,0.00013973,2]
[334624586,1723361386922,8194.1428,0.00014906,2]
[334624587,1723361409799,181.82632038,0.00014999,2]
[334624590,1723361417049,449.45808534,0.00014999,2]
[334624591,1723361430115,162.69079755,0.00014999,2]
[334624609,1723361431529,-456.10982855,0.00015105,2]
[334624611,1723361431538,-39.63017145,0.00015259,2]
[334624621,1723361431580,-502.502,0.00015259,2]
[334624628,1723361431631,-38.29782855,0.00015259,2]
[334624630,1723361431641,-300.0,0.0001526,2]
[334624632,1723361431650,-1274.46397865,0.00015261,2]
[334624636,1723361431684,-5034.45521341,0.00015261,2]
[334624638,1723361431694,-8714.94466743,0.00015261,2]
[334624639,1723361431739,-499.29,0.00015261,2]
[334624640,1723361431754,-785.76533257,0.00015261,2]
[334624641,1723361431763,-150.0,0.0001527,2]
[334624642,1723361431773,-58.88947778,0.00015271,2]
[334624675,1723361432578,1050.42686795,0.00014999,2]
[334624694,1723361437864,-200.0,0.00015294,2]
[334624695,1723361437875,-169.61,0.00015341,2]
[334624696,1723361437885,-67.73415512,0.00015369,2]
[334624697,1723361437911,-556.59798977,0.00015369,2]
[334624698,1723361437920,-5440.65,0.00015369,2]
[334624699,1723361437930,-4228.46241857,0.00015566,2]
[334624700,1723361437941,-5209.75432339,0.00015566,2]
[334624701,1723361437957,-1939.19935657,0.00015566,2]
[334624702,1723361438004,-1792.855,0.00015566,2]
[334624703,1723361438050,-533.18762817,0.00015566,2]
[334624833,1723361439655,-10196.5412733,0.00015566,2]
[334624834,1723361439665,-810.51889632,0.00015568,2]
[334624836,1723361439674,-162.56,0.0001557,2]
[334624838,1723361439684,-250.0,0.00015572,2]
[334624840,1723361439694,-1000.0,0.00015585,2]
[334624842,1723361439703,-167.0,0.00015831,2]
[334624844,1723361439712,-191.41193805,0.00015897,2]
[334624846,1723361439722,-607.93123328,0.00015912,2]
[334624848,1723361439731,-842.6,0.00015915,2]
[334624850,1723361439741,-158.04,0.00015934,2]
[334624852,1723361439750,-158.04,0.00015942,2]
[334624854,1723361439760,-1517.42,0.00015942,2]
[334624856,1723361439770,-273.6,0.00015951,2]
[334624857,1723361439779,-5151.07,0.00015951,2]
[334624859,1723361439789,-158.04,0.00015951,2]
[334624862,1723361439803,-158.04,0.0001596,2]
[334624864,1723361439813,-3045.18665906,0.0001596,2]
[334624866,1723361439824,-389.44550813,0.0001596,2]
[334624868,1723361439836,-4167.34783281,0.0001596,2]
[334624870,1723361439847,-158.04,0.00015969,2]
[334624872,1723361439857,-158.04,0.00015978,2]
[334624874,1723361439868,-158.04,0.00015987,2]
[334624876,1723361439877,-158.04,0.00015996,2]
[334624878,1723361439887,-607.93123328,0.00015999,2]
[334624879,1723361439897,-158.04,0.00016004,2]
[334624881,1723361439907,-158.04,0.00016013,2]
[334624883,1723361439916,-522.80021426,0.00016033,2]
[334624885,1723361439927,-270.96551371,0.00016033,2]
[334624887,1723361439938,-526.66030387,0.00016358,2]
[334624889,1723361439947,-420.30226764,0.00016441,2]
[334624891,1723361439957,-1405.98538711,0.00016441,2]
[334624893,1723361439967,-547.78190811,0.0001647,2]
[334624895,1723361439977,-1634.24451299,0.0001647,2]
[334624897,1723361439988,-155.0,0.0001647,2]
[334624899,1723361439998,-1036.96663899,0.00016636,2]
[334624901,1723361440008,-150.0,0.00016699,2]
[334624903,1723361440018,-150.0,0.00016701,2]
[334624904,1723361440028,-167.0,0.00016702,2]
[334624906,1723361440038,-150.0,0.00016704,2]
[334624908,1723361440049,-150.0,0.00016706,2]
[334624911,1723361440061,-150.0,0.00016706,2]
[334624912,1723361440071,-150.0,0.00016712,2]
[334624915,1723361440080,-150.0,0.00016714,2]
[334624916,1723361440090,-150.0,0.00016717,2]
[334624918,1723361440100,-150.0,0.00016719,2]
[334624920,1723361440109,-150.0,0.00016732,2]
[334624922,1723361440119,-150.0,0.00016734,2]
[334624924,1723361440129,-150.0,0.00016741,2]
[334624926,1723361440139,-150.0,0.00016741,2]
[334624928,1723361440148,-150.0,0.00016741,2]
[334624930,1723361440158,-150.0,0.00016743,2]
[334624932,1723361440167,-150.0,0.00016745,2]
[334624934,1723361440176,-150.0,0.00016748,2]
[334624935,1723361440184,-150.0,0.00016749,2]
[334624937,1723361440194,-154.3,0.00016749,2]
[334624939,1723361440203,-150.48,0.00016749,2]
[334624941,1723361440213,-150.0,0.00016749,2]
[334624943,1723361440222,-150.0,0.00016749,2]
[334624945,1723361440231,-431.07,0.00016749,2]
[334624947,1723361440242,-150.59,0.00016749,2]
[334624949,1723361440251,-858.21,0.00016749,2]
[334624951,1723361440261,-426.27,0.00016749,2]
[334624953,1723361440271,-426.27,0.00016749,2]
[334624955,1723361440280,-425.27,0.00016749,2]
[334624957,1723361440290,-150.0,0.00016752,2]
[334624959,1723361440299,-150.0,0.00016754,2]
[334624961,1723361440309,-150.0,0.00016763,2]
[334624963,1723361440318,-150.0,0.00016765,2]
[334624965,1723361440327,-1000.0,0.00016767,2]
[334624967,1723361440336,-474.3151,0.00016767,2]
[334624969,1723361440345,-29783.16667881,0.00016767,2]
[334624974,1723361440386,-2463.81135,0.00016767,2]
[334624976,1723361440397,-557.38108761,0.00016767,2]
[334624979,1723361440411,-670.37,0.00016767,2]
[334624981,1723361440423,-5106.5,0.00016767,2]
[334625122,1723361442596,-932.77778032,0.00016767,2]
[334625290,1723361445705,170.46315776,0.00014999,2]
[334625292,1723361445717,-18546.39835417,0.00016767,2]
[334625308,1723361445872,-150.0,0.00016769,2]
[334625310,1723361445882,-150.0,0.00016769,2]
[334625312,1723361445891,-150.0,0.00016772,2]
[334625314,1723361445901,-150.0,0.00016773,2]
[334625316,1723361445910,-150.0,0.00016775,2]
[334625318,1723361445919,-150.0,0.0001678,2]
[334625319,1723361445929,-420.0,0.00016786,2]
[334625321,1723361445941,-150.0,0.00016787,2]
[334625323,1723361445950,-150.0,0.00016787,2]
[334625325,1723361445961,-150.0,0.00016787,2]
[334625327,1723361445971,-150.0,0.00016789,2]
[334625329,1723361445980,-150.0,0.00016789,2]
[334625331,1723361445990,-150.0,0.0001679,2]
[334625333,1723361446008,-150.0,0.00016795,2]
[334625335,1723361446017,-150.0,0.00016796,2]
[334625337,1723361446027,-150.0,0.00016799,2]
[334625339,1723361446036,-150.0,0.00016805,2]
[334625341,1723361446045,-150.0,0.00016807,2]
[334625343,1723361446054,-152.0,0.0001681,3]
[334625344,1723361446063,-150.0,0.00016815,2]
[334625346,1723361446072,-150.0,0.00016816,2]
[334625348,1723361446082,-150.0,0.00016819,2]
[334625350,1723361446091,-150.0,0.00016821,2]
[334625352,1723361446100,-150.0,0.00016822,2]
[334625354,1723361446110,-150.0,0.00016823,2]
[334625356,1723361446119,-150.0,0.00016826,2]
[334625359,1723361446129,-150.0,0.00016827,2]
[334625362,1723361446138,-150.0,0.00016831,2]
[334625364,1723361446148,-150.0,0.00016834,2]
[334625366,1723361446158,-150.0,0.00016835,2]
[334625368,1723361446167,-150.0,0.00016843,2]
[334625370,1723361446177,-150.0,0.00016844,2]
[334625372,1723361446187,-150.0,0.00016845,2]
[334625374,1723361446196,-150.0,0.00016848,2]
[334625376,1723361446205,-150.0,0.00016849,2]
[334625378,1723361446214,-150.0,0.00016851,2]
[334625380,1723361446224,-150.0,0.00016852,2]
[334625382,1723361446233,-150.0,0.00016852,2]
[334625383,1723361446244,-150.0,0.00016854,2]
[334625385,1723361446253,-781.60154583,0.00016855,2]
[334625388,1723361446265,-4218.39845417,0.00016855,2]
[334625389,1723361446274,-4181.60154583,0.00016855,2]
[334625391,1723361446284,-432.87434618,0.00016855,2]
[334625401,1723361446367,-385.52410799,0.00016855,2]
[334625403,1723361446377,-150.0,0.0001686,2]
[334625405,1723361446389,-150.0,0.0001686,2]
[334625407,1723361446398,-150.0,0.00016861,2]
[334625409,1723361446409,-150.0,0.00016862,2]
[334625411,1723361446418,-150.0,0.00016863,2]
[334625413,1723361446428,-150.0,0.00016864,2]
[334625415,1723361446440,-150.0,0.00016865,2]
[334625417,1723361446449,-150.0,0.00016866,2]
[334625419,1723361446459,-552.37775214,0.00016867,2]
[334625818,1723361450511,227.74801183,0.00014999,2]
[334625926,1723361479716,413.11934723,0.00014999,2]
[334625927,1723361519455,162.69079755,0.00014999,2]
[334625929,1723361538813,181.82632038,0.00014999,2]
[334625930,1723361549556,13896.64478723,0.00014999,2]
[334625931,1723361550107,449.45808534,0.00014999,2]
[334625934,1723361595722,412.97711689,0.00014999,2]
[334625937,1723361638825,181.71982107,0.00014999,2]
[334625950,1723362068789,2840.85553108,0.00014988,2]
[334625951,1723362096358,758.34,0.00013881,2]
[334625955,1723362159272,155.73849284,0.00015,2]
[334625956,1723362212401,1932.71828852,0.00014988,2]
[334625957,1723362236326,20912.12249882,0.00015,2]
[334625959,1723362287034,153.13,0.00013973,2]
[334625966,1723362348107,5000.0,0.00014988,2]
[334625967,1723362370472,173.05,0.00012466,2]
[334625970,1723362477194,1019.3939972,0.00014988,2]
[334625973,1723362551765,720.42,0.00013672,2]
[334625980,1723362564044,522.80021426,0.00014988,2]
[334625981,1723362571231,531.10427254,0.00014988,2]
[334625982,1723362599163,150.46927565,0.00025,60]
[334626002,1723362631677,-1017.04312744,0.00015485,2]
[334626005,1723362631688,-1001.55012815,0.00015485,2]
[334626007,1723362631699,-564.64444441,0.00015485,2]
[334626009,1723362631709,-155.31,0.00015572,2]
[334626011,1723362631718,-287.12142833,0.00015578,2]
[334626013,1723362631729,-3.08857167,0.00015578,2]
[334626015,1723362631738,-800.0,0.00015582,2]
[334626017,1723362631747,-250.0,0.00015582,2]
[334626018,1723362631757,-300.0,0.00015589,2]
[334626019,1723362631767,-300.0,0.00015589,2]
[334626020,1723362631776,-15412.68085234,0.00015589,2]
[334626021,1723362631786,-23900.0,0.0001559,2]
[334626022,1723362631798,-218.88,0.00015594,2]
[334626023,1723362631807,-169.61,0.00015611,2]
[334626024,1723362631816,-159.09,0.00015799,2]
[334626025,1723362631826,-159.09,0.00015804,2]
[334626026,1723362631836,-159.09,0.0001581,2]
[334626027,1723362631846,-159.09,0.00015815,2]
[334626028,1723362631855,-159.09,0.0001582,2]
[334626029,1723362631866,-159.09,0.00015825,2]
[334626030,1723362631875,-159.09,0.00015831,2]
[334626031,1723362631884,-181.12,0.00015835,2]
[334626032,1723362631893,-159.09,0.00015836,2]
[334626033,1723362631902,-159.09,0.00015841,2]
[334626034,1723362631911,-159.09,0.00015846,2]
[334626035,1723362631921,-159.09,0.00015852,2]
[334626036,1723362631932,-159.09,0.00015857,2]
[334626037,1723362631941,-159.09,0.00015862,2]
[334626050,1723362631951,-159.09,0.00015867,2]
[334626052,1723362632131,-159.09,0.00015873,2]
[334626054,1723362632141,-159.09,0.00015878,2]
[334626056,1723362632150,-200.0,0.00015924,2]
[334626058,1723362632159,-720.42,0.00015936,2]
[334626060,1723362632169,-698.78866,0.00016,2]
[334626062,1723362632179,-1405.98538711,0.00016232,2]
[334626064,1723362632192,-167.0,0.00016304,2]
[334626066,1723362632202,-1634.24451299,0.00016441,2]
[334626068,1723362632211,-1764.09435652,0.00016598,2]
[334626070,1723362632220,-29.4222372,0.00016688,2]
[334626072,1723362632232,-390.88003044,0.00016688,2]
[334626074,1723362632241,-150.0,0.00016693,2]
[334626076,1723362632250,-150.0,0.00016694,2]
[334626078,1723362632259,-150.0,0.00016695,2]
[334626080,1723362632268,-150.0,0.00016698,2]
[334626082,1723362632277,-150.0,0.00016701,2]
[334626084,1723362632286,-150.0,0.00016706,2]
[334626086,1723362632296,-150.0,0.00016713,2]
[334626088,1723362632305,-150.0,0.00016717,2]
[334626090,1723362632314,-150.0,0.00016723,2]
[334626091,1723362632323,-150.0,0.00016726,2]
[334626093,1723362632333,-150.0,0.00016728,2]
[334626095,1723362632342,-150.0,0.00016729,2]
[334626098,1723362632351,-150.0,0.0001673,2]
[334626099,1723362632361,-150.0,0.00016732,2]
[334626101,1723362632370,-150.0,0.00016734,2]
[334626103,1723362632379,-150.0,0.00016736,2]
[334626106,1723362632388,-150.0,0.00016737,2]
[334626107,1723362632397,-36.75230875,0.00016743,2]
[334626110,1723362632412,-113.24769125,0.00016743,2]
[334626112,1723362632422,-150.0,0.00016748,2]
[334626114,1723362632431,-150.0,0.00016749,2]
[334626116,1723362632440,-36.75230875,0.0001675,2]
[334626118,1723362632451,-113.24769125,0.0001675,2]
[334626120,1723362632461,-150.0,0.00016766,2]
[334626122,1723362632470,-150.0,0.00016767,2]
[334626124,1723362632480,-7276.8978,0.00016776,2]
[334626126,1723362632489,-150.0,0.00016777,2]
[334626128,1723362632498,-150.0,0.00016777,2]
[334626130,1723362632507,-150.0,0.00016778,2]
[334626132,1723362632516,-150.0,0.0001678,2]
[334626134,1723362632524,-150.0,0.00016784,2]
[334626136,1723362632535,-150.0,0.00016787,2]
[334626138,1723362632544,-150.0,0.00016791,2]
[334626140,1723362632553,-150.0,0.00016793,2]
[334626142,1723362632562,-150.0,0.00016794,2]
[334626144,1723362632571,-150.0,0.00016796,2]
[334626146,1723362632580,-150.0,0.00016796,2]
[334626148,1723362632589,-150.0,0.000168,2]
[334626150,1723362632598,-150.0,0.00016801,2]
[334626152,1723362632608,-150.0,0.00016801,2]
[334626154,1723362632617,-150.0,0.00016801,2]
[334626155,1723362632626,-150.0,0.00016802,2]
[334626157,1723362632635,-150.0,0.00016803,2]
[334626159,1723362632644,-150.0,0.00016811,2]
[334626161,1723362632654,-150.0,0.00016812,2]
[334626163,1723362632663,-150.0,0.00016815,2]
[334626165,1723362632672,-150.0,0.00016817,2]
[334626167,1723362632682,-150.0,0.00016822,2]
[334626169,1723362632691,-150.0,0.00016822,2]
[334626171,1723362632700,-150.0,0.00016823,2]
[334626173,1723362632709,-150.0,0.00016824,2]
[334626175,1723362632720,-150.0,0.00016826,2]
[334626177,1723362632729,-167.60641119,0.00016827,2]
[334626179,1723362632739,-150.0,0.00016828,2]
[334626181,1723362632748,-150.0,0.00016832,2]
[334626183,1723362632758,-150.0,0.00016836,2]
[334626185,1723362632768,-150.0,0.00016836,2]
[334626187,1723362632777,-150.0,0.00016837,2]
[334626189,1723362632788,-150.0,0.00016838,2]
[334626191,1723362632798,-300.0,0.0001685,2]
[334626193,1723362632807,-150.0,0.00016856,2]
[334626195,1723362632817,-150.0,0.00016858,2]
[334626197,1723362632826,-150.0,0.00016858,2]
[334626199,1723362632836,-150.0,0.00016859,2]
[334626201,1723362632845,-176.48539662,0.00016867,2]
[334626203,1723362632854,-150.0,0.0001687,2]
[334626205,1723362632864,-150.0,0.00016873,2]
[334626207,1723362632873,-150.0,0.00016873,2]
[334626209,1723362632882,-150.0,0.00016874,2]
[334626211,1723362632892,-22999.66155886,0.00016875,2]
[334626213,1723362632904,-1515.99924112,0.00016875,2]
[334626215,1723362632915,-2757.28875659,0.00016875,2]
[334626218,1723362632927,-516.44568421,0.00016875,2]
[334626220,1723362632943,-791.24822385,0.00016875,2]
[334626256,1723362637749,-1641.96215942,0.00016875,2]
[334626257,1723362637803,-775.44461026,0.00016875,2]
[334626258,1723362637815,-586.27968751,0.00016875,2]
[334626259,1723362637826,-2270.48898449,0.00016875,2]
[334626260,1723362637837,-3341.08566782,0.00016875,2]